Cogmind - Beta 16.1 @@@ ROGUE MODE // 2026.06.18 @ 15:19:22 Player: 0R-LIM Result: Self-destructed Performance ------------- Evolutions (1) 500 Regions Visited (4) 800 Robots Destroyed (46) 230 Value Destroyed (990) 990 Prototype IDs (3) 60 Alien Tech Used (0) 0 Bonus (50) 50 TOTAL SCORE: 2630 Bonus ------- Follower Combat Kills 50 Cogmind --------- Core Integrity 177/400 Matter 196/300 Energy 100/100 System Corruption 6% Temperature Cool (45) Movement Core (1400) Ox27 Location -9/Mines Parts ------- > --- POWER (1) -------- (None) > --- PROPULSION (3) --- (None) > --- UTILITY (3) ------ Huge Storage Unit Light Armor Plating > --- WEAPON (2) ------- (None) > --- INVENTORY (25) --- Light Treads Wheel Wheel Heat Sink Large Storage Unit Signal Interpreter Seismic Detector Seismic Detector Improved Targeting Computer Light Armor Plating Splice Drone Bay (6/6) EM Pulse Gun Beam Rifle Spread Laser Light Assault Rifle Heavy Assault Rifle Shotgun Datajack Mining Laser Maul Signal Generator Peak State ------------ > --- POWER ------------ Light Nuclear Core > --- PROPULSION ------- Light Treads Wheel Wheel > --- UTILITY ---------- Huge Storage Unit Signal Interpreter Splice Drone Bay > --- WEAPON ----------- Shotgun Shotgun > --- INVENTORY -------- Ion Engine Light Treads Wheel Wheel Heat Sink Large Storage Unit Signal Interpreter Seismic Detector EM Pulse Gun Spread Laser Spread Laser Shotgun Rocket Launcher Rocket Launcher Mining Laser Proton Bomb Trap Proton Bomb Trap Proton Bomb Trap Proton Bomb Trap Proton Bomb Trap Signal Generator [Rating: 22] Favorites ----------- Power Ion Engine Engine Ion Engine Power Core Light Nuclear Core Propulsion Wheel Treads Light Treads Wheel Wheel Utility Huge Storage Unit Device Seismic Detector Storage Huge Storage Unit Processor Signal Interpreter Protection Light Armor Plating Weapon Shotgun Energy Gun EM Pulse Gun Ballistic Gun Shotgun Launcher Rocket Launcher Special Weapon Mining Laser Build | -11 -10 -10 -9 -9 ------- Run | Yrd Mat Min Mat Min Slots Evolved 2 | . . . 2 . Power . | . . . . . Propulsion 1 | . . . 1 . Utility 1 | . . . 1 . Weapon . | . . . . . Parts Attached 31 | 8 3 7 12 1 Power 4 | 1 . 2 1 . Engine 3 | 1 . 1 1 . Core 1 | . . 1 . . Reactor . | . . . . . Propulsion 9 | 2 . 2 5 . Treads 2 | . . . 2 . Leg . | . . . . . Wheel 7 | 2 . 2 3 . Hover . | . . . . . Flight . | . . . . . Utility 7 | 2 1 1 2 1 Device 3 | 1 . . 2 . Storage 2 | 1 1 . . . Processor 1 | . . 1 . . Hackware . | . . . . . Protection 1 | . . . . 1 Artifact . | . . . . . Weapon 11 | 3 2 2 4 . Energy Gun 3 | 2 . . 1 . Energy Cannon . | . . . . . Ballistic Gun 5 | 1 1 1 2 . Ballistic Cannon . | . . . . . Launcher 2 | . 1 1 . . Special Weapon 1 | . . . 1 . Impact Weapon . | . . . . . Slashing Weapon . | . . . . . Piercing Weapon . | . . . . . Special Melee Weapon . | . . . . . Unidentified Prototypes 1 | . . . 1 . Parts Lost 19 | . . 4 7 8 Power 3 | . . 1 1 1 Propulsion 9 | . . 2 4 3 Utility 2 | . . 1 . 1 Weapon 5 | . . . 2 3 Highest Loss Streak 8 | . . 3 2 8 To Critical Strikes . | . . . . . Average Backups 15 | 1 11 14 18 21 Power . | . 1 1 . . Propulsion 3 | . 2 3 2 3 Utility 3 | . 1 2 6 8 Weapon 7 | . 6 6 9 9 Tool/Special . | . . . . . Unused Backups 14 | . . . . 14 Power . | . . . . . Propulsion 2 | . . . . 2 Utility 6 | . . . . 6 Weapon 5 | . . . . 5 Tool/Special 1 | . . . . 1 Average Slot Usage (%) 99 | . 100 99 98 92 Engine 9 | . 14 10 5 9 Core 3 | . . 3 5 . Treads 4 | . . . 11 9 Wheel 25 | . 28 27 21 20 Device 9 | . 14 4 10 7 Storage 12 | . 14 14 11 11 Processor 8 | . . 9 11 11 Energy Gun 4 | . . . 9 . Ballistic Gun 20 | . 27 26 11 18 Peak Build Rating 22 | 7 10 13 22 14 Average Rating 12 | 5 9 10 16 12 On Entrance 8 | . 7 9 13 14 Avg Prop Armor Cover (%) 9 | . . . 9 10 Naked Turns . | . . . . . Heaviest Build 99 | 12 91 90 99 92 Greatest Support 26 | 26 26 26 20 20 Greatest Overweight (x) 9 | . 3 8 9 4 Average Overweight (x) 3 | . 2 3 4 4 Largest Inventory Capacity 25 | 8 25 25 25 25 Average Capacity 24 | 7 24 25 25 25 Most Carried 25 | 3 15 22 25 22 Average Carried 17 | 1 11 16 22 21 Final Capacity 25 | 8 25 25 25 25 Final Carried 22 | 3 14 21 22 21 Class Distribution -------------------- 96% | Mutant 3% | Scavenger-Mutant Dominant Class ---------------- Mutant | -10/Materials Mutant | -10/Mines Mutant | -9/Materials Scavenger-Mutant | -9/Mines Resources | -11 -10 -10 -9 -9 ----------- Run | Yrd Mat Min Mat Min Matter Collected 1169 | 219 169 406 375 . Remotely . | . . . . . Salvage Created 1172 | 54 97 403 569 49 Parts 95 | 8 9 24 54 . Haulers Intercepted 1 | . 1 . . . Recyclers Shooed 1 | . . 1 . . Parts Field Recycled . | . . . . . Retrieved Matter . | . . . . . Parts Self-Destructed . | . . . . . Prevented . | . . . . . Parts Restored . | . . . . . Kills | -11 -10 -10 -9 -9 ------- Run | Yrd Mat Min Mat Min Combat Hostiles Destroyed 47 | . 2 14 18 13 Guns 29 | . 1 12 15 1 AOE 18 | . 1 2 3 12 Classes Destroyed 9 | 1 4 1 3 . Worker 5 | . 1 1 3 . Tunneler 3 | 2 . . 1 . Hauler 1 | . 1 . . . Operator 2 | . . . 2 . Watcher 3 | . . . 3 . Swarmer 12 | . 1 2 9 . Grunt 17 | . 1 10 6 . Sentry 3 | . . . 3 . Assembled 15 | . . 2 . 13 Best Kill Streak 13 | 2 1 3 4 13 Combat Bots Only 13 | . 1 3 4 13 Max Kills in Single Turn 4 | 1 1 2 2 4 Gunslinging 1 | . . 1 1 . Exploded 4 | . 1 2 1 4 Melee . | . . . . . Uniques/NPCs Destroyed . | . . . . . Combat | -11 -10 -10 -9 -9 -------- Run | Yrd Mat Min Mat Min Hostile Shots Fired 146 | . 7 36 77 26 Missed 37 | . 2 15 18 2 Hits 109 | . 5 21 59 24 Melee 5 | . . 3 . 2 Projectile 104 | . 5 18 59 22 Critical Strikes 2 | . . . 1 1 Part Disruptions 1 | . . . . 1 Damage Taken 1962 | . 96 391 1073 402 Core 361 | . 32 106 181 42 Absorbed by Shields . | . . . . . Core Remaining (%) 72 | 100 . 44 . . Volleys Fired 122 | 5 13 34 63 7 Largest 2 | 2 2 2 2 2 Hottest 100 | 60 43 43 100 46 Shots Fired 212 | 10 25 60 107 10 Gun 192 | 10 24 56 97 5 Cannon . | . . . . . Launcher 14 | . 1 4 4 5 Special 6 | . . . 6 . Kinetic 143 | 5 24 56 53 5 Thermal 33 | 5 . . 28 . Explosive 14 | . 1 4 4 5 Electromagnetic 22 | . . . 22 . Robot Hit Streak 11 | 3 5 5 11 6 Robot Miss Streak 7 | 3 2 4 7 1 Penetration Max . | . . . . . Secondary Targets 4 | . . 1 2 1 Max Gunslinging Chain 1 | . . 1 1 1 Shots Hit Robots 143 | 5 19 43 69 7 Core Hits 114 | 2 7 28 58 19 Critical Kills 1 | . . . . 1 Critical Parts Destroyed 1 | . . 1 . . Critical Strikes 2 | . . 1 . 1 Destroy 2 | . . 1 . 1 Melee Attacks . | . . . . . Impact . | . . . . . Slashing . | . . . . . Piercing . | . . . . . Sneak Attacks . | . . . . . Combat Hostiles . | . . . . . Follow-up Attacks . | . . . . . Damage Inflicted 3170 | 72 269 737 1141 951 Guns 1863 | 72 241 546 939 65 Cannons . | . . . . . Explosions 1307 | . 28 191 202 886 Melee . | . . . . . Ramming . | . . . . . Kinetic 1365 | 39 241 546 474 65 Thermal 317 | 33 . . 284 . Explosive 1285 | . 28 191 180 886 Electromagnetic 203 | . . . 203 . Impact . | . . . . . Slashing . | . . . . . Piercing . | . . . . . Highest Corruption 11 | . . 11 2 6 Average Corruption 5 | . . 10 2 2 Corruption Purged . | . . . . . Corruption Blocked . | . . . . . Effects 46 | . . 30 14 2 Message Errors 9 | . . 6 3 . Matter Fused 9 | . . 6 2 1 Heat Flow Errors 5 | . . 3 2 . Energy Discharges 3 | . . 1 2 . Parts Rejected 2 | . . 1 1 . Parts Fused 1 | . . 1 . . Data Loss (minor) 8 | . . 5 3 . Data Loss (major) 1 | . . 1 . . Misfires 6 | . . 4 1 1 Alerts 2 | . . 2 . . Overload Shots . | . . . . . Overflow Damage 26 | . . . 12 14 Projectiles . | . . . . . Explosions 26 | . . . 12 14 Melee . | . . . . . Knockbacks . | . . . . . Impact . | . . . . . Kinetic . | . . . . . Secondary . | . . . . . Self-Inflicted Damage 358 | . 49 108 131 70 Shots 10 | . 1 3 4 2 Rammed . | . . . . . Targets Rammed . | . . . . . Kicked . | . . . . . Crushed . | . . . . . Highest Temperature 261 | . . 261 156 124 Average Temperature 56 | . . 74 50 69 Received Heat Transfer 497 | . 12 96 189 200 Siege Activations . | . . . . . Martial Activations . | . . . . . Shielding Activations . | . . . . . Robots Disrupted 1 | . . . 1 . Combat Hostiles . | . . . . . Robots Corrupted . | . . . . . Combat Hostiles . | . . . . . Parts Fried . | . . . . . Impact Corruptions . | . . . . . Robots Melted . | . . . . . Combat Hostiles . | . . . . . Parts Melted 1 | . . . 1 . Heat Transferred 415 | 75 . . 340 . Parts Sabotaged . | . . . . . Parts Stolen . | . . . . . Parts Stripped . | . . . . . Power Chain Reactions 1 | . . . 1 . Alert | -11 -10 -10 -9 -9 ------- Run | Yrd Mat Min Mat Min Maximum Alert Level . | . . . . . Low Security (%) 100 | 100 100 100 100 100 Level 1 . | . . . . . Level 2 . | . . . . . Level 3 . | . . . . . Level 4 . | . . . . . Level 5 . | . . . . . High Security . | . . . . . Max Security . | . . . . . Peak Influence 194 | 10 75 193 194 70 Initial 70 | . . 22 68 70 Average 56 | 2 7 33 106 54 Influence Increases 1136 | 10 133 356 610 27 Destroy 0b10 Robot/C 680 | . 40 280 360 . Destroy 0b10 Robot/NC 70 | 10 10 5 45 . Destroy Leader 138 | . 12 30 96 . Allied During Kill 7 | . . 7 . . Successful Hack 13 | . 13 . . . Disable Machine 15 | . . 15 . . Destroy Structure 93 | . 13 19 34 27 Partial Spotted 15 | . . . 15 . Lose Combat Pursuer 105 | . 45 . 60 . Influence Decreases 1136 | 10 74 240 603 209 Entered New Map 256 | . . 37 107 112 Time Decay 703 | 10 74 163 436 20 Lost Part 157 | . . 20 60 77 Lost Ally 20 | . . 20 . . Squads Dispatched 5 | . 1 1 3 . Investigation 1 | . 1 . . . Extermination . | . . . . . Reinforcement 3 | . . . 3 . Assault 1 | . . 1 . . Garrison . | . . . . . Intercept . | . . . . . Searches Triggered . | . . . . . Construction Impeded 1 | . . . 1 . Haulers Reinforced . | . . . . . Active Scanning Responses . | . . . . . Cargo Convoy Interrupts . | . . . . . Stealth | -11 -10 -10 -9 -9 --------- Run | Yrd Mat Min Mat Min Distress Signals . | . . . . . Communications Jammed . | . . . . . Distress Signals . | . . . . . Times Spotted 73 | . 5 16 32 20 Peak Tracking Total 17 | . 3 4 3 17 Tactical Retreats 5 | . 2 . 3 . Traps | -11 -10 -10 -9 -9 ------- Run | Yrd Mat Min Mat Min Traps Triggered 1 | . 1 . . . Indirectly . | . . . . . Trap Hack Attempts . | . . . . . Triggered . | . . . . . Disarmed . | . . . . . Reprogrammed . | . . . . . Reused . | . . . . . Traps Extracted . | . . . . . Installed . | . . . . . Triggered . | . . . . . Most Traps Carried 5 | . . 5 5 . Machines | -11 -10 -10 -9 -9 ---------- Run | Yrd Mat Min Mat Min Machines Disabled 1 | . . 1 . . Max in Single Turn 1 | . . 1 . . Machines Repaired . | . . . . . Machines Dismantled . | . . . . . Machines Sabotaged . | . . . . . Overloaded Fab Kills . | . . . . . Hacking | -11 -10 -10 -9 -9 --------- Run | Yrd Mat Min Mat Min Machines Accessed 7 | . 4 1 2 . Terminals 6 | . 4 . 2 . Fabricators . | . . . . . Repair Stations . | . . . . . Recycling Units . | . . . . . Scanalyzers . | . . . . . Garrison Access . | . . . . . Total Hacks 9 | . 5 1 3 . Successful 7 | . 4 1 2 . Failed 2 | . 1 . 1 . Catastrophic 1 | . 1 . . . Database Lockouts . | . . . . . Manual 1 | . 1 . . . Terminals 8 | . 5 . 3 . Fabricators . | . . . . . Repair Stations . | . . . . . Recycling Units . | . . . . . Scanalyzers . | . . . . . Garrison Access . | . . . . . Terminal Hacks 7 | . 4 1 2 . Record 2 | . . . 2 . Prototype ID Bank 1 | . 1 . . . Open Door 1 | . . 1 . . Branch Access Points 1 | . 1 . . . Locate Traps 1 | . 1 . . . Hauler Manifests 1 | . 1 . . . Fabricator Hacks . | . . . . . Repair Station Hacks . | . . . . . Recycling Unit Hacks . | . . . . . Scanalyzer . | . . . . . Garrison Access Hacks . | . . . . . Unauthorized Hacks . | . . . . . Terminals . | . . . . . Fabricators . | . . . . . Repair Stations . | . . . . . Recycling Units . | . . . . . Scanalyzers . | . . . . . Garrison Access . | . . . . . Data Cores Recovered . | . . . . . Used . | . . . . . Hacking Detections 3 | . 2 . 1 . Full Trace Events . | . . . . . Feedback Events . | . . . . . Feedback Blocked . | . . . . . Robot Schematics Acquired . | . . . . . Robots Built . | . . . . . Authchips . | . . . . . Time . | . . . . . Total Robot Build Rating . | . . . . . Part Schematics Acquired . | . . . . . Parts Built . | . . . . . Authchips . | . . . . . Time . | . . . . . Total Part Build Rating . | . . . . . Part Studies Acquired . | . . . . . Parts Repaired . | . . . . . Time . | . . . . . Parts Recycled . | . . . . . Recycled Matter . | . . . . . Retrieved Matter . | . . . . . Retrieved Components . | . . . . . Parts Scanalyzed . | . . . . . Part Schematics Acquired . | . . . . . Parts Damaged . | . . . . . Bothacking | -11 -10 -10 -9 -9 ------------ Run | Yrd Mat Min Mat Min Used RIF Installer . | . . . . . Robots Hacked . | . . . . . Non-combat . | . . . . . Combat . | . . . . . Robot Hacks Applied . | . . . . . Relay Couplers Released . | . . . . . Fabnet Peak Effective % . | . . . . . Robots Rewired . | . . . . . Allies Hacked . | . . . . . Hacks Repelled . | . . . . . Allies | -11 -10 -10 -9 -9 -------- Run | Yrd Mat Min Mat Min Total Allies 2 | . . 2 . . Largest Group 1 | . . 1 . . Highest-Rated Group 31 | . . 31 . . Highest-Rated Ally 31 | . . 31 . . Total Orders . | . . . . . Ally Attacks 6 | . . 6 . . Total Damage 105 | . . 105 . . Kills 2 | . . 2 . . Allies Corrupted . | . . . . . Allies Melted . | . . . . . Intel | -11 -10 -10 -9 -9 ------- Run | Yrd Mat Min Mat Min Active Infowar (turns) 1912 | 9 704 367 801 31 Seismic 1912 | 9 704 367 801 31 Robot Analysis Total . | . . . . . Derelict Logs Recovered . | . . . . . Drone Launches . | . . . . . Drone Recoveries . | . . . . . Exploration | -11 -10 -10 -9 -9 ------------- Run | Yrd Mat Min Mat Min Turns Passed 3295 | 80 704 1137 1322 52 Spaces Moved 1738 | 56 329 705 626 22 Core 3 | 3 . . . . Treads 4 | . . . 4 . Legs . | . . . . . Wheels 1731 | 53 329 705 622 22 Hover . | . . . . . Flight . | . . . . . Fastest Speed 50 | 50 90 135 140 140 Average Speed 136 | 87 132 136 143 140 Slowest Speed 480 | 90 135 200 480 140 Overloaded Moves . | . . . . . Propulsion Burnouts . | . . . . . Robots Hopped . | . . . . . Potential Cave-ins . | . . . . . Cave-ins Triggered 1 | . . . 1 . Exploration Rate (%) 42 | 3 55 99 40 15 Regions Visited 4 Branch Regions 2 Pre-discovered Areas . | . . . . . Known Exits Taken 3 | . 1 1 1 . Unknown Exits Taken 1 | 1 . . . . Scrap Searched 1 | . . 1 . . Spaces Dug . | . . . . . Terrain Destroyed 120 | . 13 28 44 35 Melee . | . . . . . Projectile . | . . . . . AOE 120 | . 13 28 44 35 Terrain Rammed . | . . . . . Walls Destroyed . | . . . . . Machines Disabled . | . . . . . Actions | -11 -10 -10 -9 -9 --------- Run | Yrd Mat Min Mat Min Total 2426 | 72 570 823 928 33 Wait 474 | 1 208 62 202 1 Move 1734 | 55 328 704 625 22 Hop . | . . . . . Pick Up 45 | 3 14 12 16 . Fast Attach 8 | 7 . 1 . . Attach 16 | . . 5 10 1 Detach 1 | . . 1 . . Swap 18 | 1 4 4 7 2 Drop 8 | . 3 . 5 . Fire 122 | 5 13 34 63 7 Melee . | . . . . . Ram . | . . . . . Kick . | . . . . . Crush . | . . . . . Escape Stasis . | . . . . . Rewire . | . . . . . Trap . | . . . . . Miscellaneous . | . . . . . Route ------- -11/Scrapyard -10/Materials (discovered 2 exits: *Mat / *Min) -10/Mines (discovered 2 exits: *Mat x2) -9/Materials (discovered 2 exits: *Mat / *Min) -9/Mines History --------- Turn | Location | Event 15 | -11/Scrapyard | Discovered new exit (range 16) 81 | -11/Scrapyard | Entered Materials 82 | -10/Materials | Met a group of wandering Federalists 300 | -10/Materials | Build established: Mutant 533 | -10/Materials | Discovered new exit (range 16) 706 | -10/Materials | Identified exit to Mines 785 | -10/Materials | Entered Mines 1129 | -10/Mines | Excavation squad dispatched 1129 | -10/Mines | A large section of the Mines collapsed 1153 | -10/Mines | System corruption reached 10% 1183 | -10/Mines | Lost 3 parts (1p1n1u) 1225 | -10/Mines | Discovered new exit (range 14) 1243 | -10/Mines | Identified exit to Materials 1338 | -10/Mines | Found the Drone Emporium 1344 | -10/Mines | Found Prototype Device 1374 | -10/Mines | Received a Mining Laser from a helpful Derelict 1469 | -10/Mines | Found a hidden stash of uninstalled traps 1705 | -10/Mines | Discovered exit to Materials (range 8) 1728 | -10/Mines | Met a Derelict testing a Signal Generator 1740 | -10/Mines | Found Signal Generator 1845 | -10/Mines | Core integrity fell below 50% 1922 | -10/Mines | Entered Materials 1922 | -9/Materials | Evolved 2 slots: Propulsion x1, Utility x1 1923 | -9/Materials | Identified Splice Drone Bay 1924 | -9/Materials | Discovered new exit (range 14) 1943 | -9/Materials | Identified exit to Mines 2214 | -9/Materials | Crushed by falling debris 2870 | -9/Materials | Discovered new exit (range 14) 2887 | -9/Materials | Identified exit to Materials 3244 | -9/Materials | Entered Mines 3251 | -9/Mines | Received a Rocket Launcher from a helpful Derelict 3266 | -9/Mines | Assembled infested the area 3290 | -9/Mines | Core integrity fell below 50% 3296 | -9/Mines | Self-destructed Last Messages --------------- 03287_ as-99850 destroyed. 03287_ as-82148 destroyed. 03288_ Lgt. Treads destroyed. 03288_ Rocket Launcher destroyed. 03288_ K-01 Serf collects debris. 03288_ Wheel destroyed. 03290_ as-56813 destroyed. 03290_ as-33670 destroyed. 03290_ Destroyed Asb. F-torch. 03290_ as-14232 destroyed. 03290_ as-47285 destroyed. 03291_ K-01 Serf collects debris. 03292_ Wheel destroyed. 03292_ as-91771 destroyed. 03292_ as-53062 destroyed. 03294_ Signal Interpreter destroyed. 03294_ System corrupted by crushing effect (+4). 03294_ K-01 Serf collects debris. 03295_ Rocket Launcher destroyed. 03296_ System corrupted: Matter fused (-10). Map ----- +----------------------------------------------------+ | | | | | | | | | | | | | | | | | ?????????????????????????????????????????????????? | | ?????????????????????????????????????????????????? | | ???????????????????????##????????????????????????? | | ????????????????????? ????????????????????????? | | ?????????????????? ????????????????????????? | | ?????????????????? ????????????????????????? | | ?????????????????? #???????????????????????? | | ??????????????????? % ##?????????? #?????????? | | ???????????????????#a #?????????? #?????????? | | ??????????????????## a ?????????? ##????????? | | ????????????????#?# ?????????# ##???????? | | ????????????????# # a ?????????? #???????? | | ??????????? ##??# a ?????????? #???????? | | ??????????? # a % ?????????# #???????? | | ?????????? a ####????# #???????? | | ?????????? ## ##???# #???????? | | ?????????? a #??## #????????? | | ????????????????# @ #### #?????????? | | ?????????????????## ## #??????????? | | ??????????????????## #??????????? | | ???????????????????## ##??????????? | | ????????????????????# ##??????????? | | ????????????????????## #### ##?####????? | | ?????????????????????## ## k##??## ### ##???? | | ??????????????????????##### #????## #???? | | ??????????????????????????# #?????## #???? | | ??????????????????????????# #??????# ] ##??? | | ??????????????????????????# ??????## #??? | | ??????????????????????????# ???????##### #??? | | ?????????????????????????? ??????????## #?? | | ?????????????????????????? """???????????? #?? | | ????????????????????????? """????????????# #?? | | ????????????????????????? ????????????????# #?? | | ?????????????????????????? ?????????????????###?? | | ?????????????????????????????????????????????????? | | ?????????????????????????????????????????????????? | | ?????????????????????????????????????????????????? | | ?????????????????????????????????????????????????? | | ?????????????????????????????????????????????????? | | ?????????????????????????????????????????????????? | | ?????????????????????????????????????????????????? | | ?????????????????????????????????????????????????? | +----------------------------------------------------+ Best States ------------- Heat Dissipation 28 Energy Generation 14 Energy Capacity 250 Matter Stores 300 Matter Capacity 300 Sight Range 16 Terrain Scan Density 10 Armor Coverage 150 Evasion (%) 42 Recoil Reduction 1 Item Schematics ----------------- None Robot Schematics ------------------ None Fabricated ------------ Nothing Repaired ---------- Nothing Studied --------- None Alien Tech Used ----------------- None Achievements -------------- None Challenges ------------ None Game ------ Seed DoorDimensionalAssimilator Manual? 0 Play Time 00:48:10 Cumulative 18.1 hours Start 2026.06.17 @ 22:27:56 End 2026.06.18 @ 15:19:22 Sessions 7 Manual Loads 0 Difficulty Rogue Special Mode None Game No. 24 Rogue 20 Adventurer 4 Explorer 0 Win Type - Total 0 Types 0/0/0/0/0/0/0/0/0/0 Lore% 8 Gallery% 10 Achievement% 12 Wizard Run 0 Options --------- Layout 2 ASCII 0 Keyboard 1 Movement Arrows Keybinds 0 Fullscreen 1 Font 24/Terminus Map View 50x44 Zoom Use 63% Tactical HUD 1 Map Filters NONE Filters NONE Steam 1 RUN: 323900c2-2902-4ce3-8c0e-8395e7659282